{"text_format":"1","workbook":"xlsx","n_sheets":4,"sheets":["PCA Plan prèv","Mesures et facteurs","Macro1","Feuil4"],"not_rendered":{"charts":0,"images":0,"macros":0,"external_links":0,"defined_names":5,"comments":1,"pivot_tables":0},"unopened":[],"bounds":{"document_bytes":16777216,"sheet_cells":100000,"rows_first":2000,"rows_last":500,"rows_between":2000,"halvings":0,"cell_chars":16384,"cell_head_chars":4096},"cells_cut":0,"cells_raw":0,"read":"whole","date_system":"1900"}

{"sheet":"PCA Plan prèv","index":0,"n_rows":59,"n_cols":15,"rows_kept":59,"cut":false,"hidden":false,"merged":[[6,2,6,4],[4,1,4,9],[1,1,1,9],[3,1,3,2],[3,3,3,4],[6,5,6,7],[5,1,5,7],[5,8,5,9]]}
[]
[null,"PLAN DE CONTINUITE DE L'ACTIVITE (PCA) - PLAN DE PRÉVENTION DU RISQUE COVID-19 POUR LES POSTES DE TRAVAIL MAINTENUS EN SERVICE"]
[]
[null,"Nom de l'entreprise :",null,"Effectif salariés :",null,"Activité : ","Alerte de reprise de l'activité :",null,null,"Dernière de mise à jour :"]
[null,"AVERTISSEMENT : Cette application Excel est mise gratuitement à la disposition des entreprises pour les guider dans la détermination du personnel pouvant travailler en péridode d'alerte COVID, dans l'analyse des facteurs de risques et le choix des mesures de prévention à prendre. Son utilisation n'est pas une obligation, cette application n'a pas de valeur juridique. Le document sera annexé au dossier d'évaluation des risques professionnels."]
[null,"CONTINUITE DE L'ACTIVITE",null,null,null,null,null,null,"PREVENTION"]
[null,null,"OUI=1   NON=0",null,null,"Ne rien écrire dans les cellules grises"]
[null,"Poste de travail","Télétravail","Distance","Contact","Maintien au travail","Arrêt                          du travail","Télétravail","Facteurs de risque","Mesures de prévention particulières"]
[null,"Mesures générales à l'entreprise",null,null,0,{"$f":"IF(D9=1,\"Fiche de poste\",0)","v":0},{"$f":"IF(E9=1,\"x\",0)","v":0},{"$f":"IF(C9=1, \"x\",0)","v":0},"Salariés : méconnaissance de la Covid","Affichage d'information gestes barrière"]
[null,null,null,null,null,0,{"$f":"IF(E10=1,\"x\",0)","v":0},{"$f":"IF(C10=1, \"x\",0)","v":0},null,"Affichage d'information symptômes covid",null,null,null,null,{"$f":"IF(B10=ISTEXT(1),0,1)","v":0}]
[null,null,null,null,null,0,0,0,null,"Affichage d'information vaccination"]
[null,null,null,null,null,0,0,0,"Espaces publics (accueil, showroom,etc.)","Fermer, interdire l'accès au public"]
[null,null,null,null,null,0,0,0,null,"Registre de passage à remplir par les visitieurs"]
[null,null,null,null,null,0,0,0,null,"Gel hydralcoolique à l'entrée"]
[null,null,null,null,null,null,null,null,null,"Organiser un sens de circulation des visiteurs"]
[null,null,null,null,null,0,0,0,"Restauration en commun (Réfectoire)","Tables : Disposition des personnes en quinconce"]
[null,null,null,null,null,0,0,0,null,"Doubler la fréquence de nettoyage du local"]
[null,null,null,null,null,0,0,0,null,"Limiter le nombre de personnes "]
[null,null,null,null,null,0,0,0,"Transport du personnel : Véhicule commun","Limiter le nombre de personnes "]
[null,null,null,null,null,0,0,0,null,"Gel hydralcoolique à l'entrée"]
[null,null,null,null,null,0,0,0,null,"Gestion du flux : Ordre de rentrée et de sortie"]
[null,null,null,null,null,0,0,0]
[null,"Assistante Ressources Humaines",1,null,null,0,0,"x","Coupure du lien social","Programmer des visioconférences",null,null,null,null,{"$f":"IF(B23=ISTEXT(1),0,1)","v":1}]
[null,null,null,null,null,0,0,0,null,"Programmer des retours au bureau"]
[null,null,null,null,null,0,0,0]
[null,"Chauffeur livreur",0,1,null,{"$f":"IF(D26=1,\"Fiche de poste\",0)","v":"Fiche de poste"},0,0,"Contact avec des objets ou des surfaces souillés ","Lavage des mains avant de monter dans le camion",null,null,null,null,1]
[null,null,null,null,null,{"$f":"IF(D27=1,\"Fiche de poste\",0)","v":0},0,0,null,"Nettoyage de la cabine à l'aide de lingettes"]
[null,null,null,null,null,0,0,0,null,"Retirer tout objet non nécessaire à la conduite"]
[null,null,null,null,null,0,0,0,"Proximité avec l'aide du conducteur","Aération de la cabine du camion"]
[null,null,null,null,null,0,0,0,null,"Interdiction de climatiser la cabine"]
[null,null,null,null,null,0,0,0,null,"Port du masque en permanence"]
[null,null,null,null,null,0,0,0]
[null,"Aide du chauffeur livreur",null,1,null,"Fiche de poste",0,0,"Contact avec des objets ou des surfaces souillés ","Lavage des mains avant de monter dans le camion",null,null,null,null,1]
[null,null,null,null,null,0,0,0,"Proximité avec l'aide du conducteur","Port du masque en permanence"]
[null,null,null,null,null,0,0,0,"Proximité avec le public lors de livraison","Distanciation de 1 mètre à maintenir"]
[null,null,null,null,null,0,0,0,null,"Porter une blouse de travail"]
[null,null,null,null,null,0,0,0]
[null,"Caissier / caissière",null,1,null,"Fiche de poste",0,0,"Proximité avec le public","Ecran fixe devant la caisse",null,null,null,null,1]
[null,null,null,null,null,0,0,0,{"$f":"IF(F39=1,\"Gestes barrière, masque, hygiène\",0)","v":0},"Port d'un écran facial",null,null,null,null,0]
[null,null,null,null,null,0,0,0,0,"Porter une blouse de travail",null,null,null,null,0]
[null,null,null,null,null,0,0,0,0,"Nettoyage de la caisse à l'aide de lingettes",null,null,null,null,0]
[null,null,null,null,null,0,0,0,null,"Demander le paiement par carte "]
[null,null,null,null,null,0,0,0,null,"Faire une pause toutes les heures"]
[null,null,null,null,null,0,0,0]
[null,"Manutentionnaire",0,0,1,0,"x",0,"Coupure du lien social","Prendre régulièrement contact avec le salarié",null,null,null,null,1]
[null,"Poste",0,0,1,0,"x",0,"Coupure du lien social","Prendre régulièrement contact avec le salarié",null,null,null,null,1]
[null,null,0,0,0,0,0,0,0,0,null,null,null,null,0]
[null,null,0,0,0,0,0,0,0,0,null,null,null,null,0]
[null,null,0,0,0,0,0,0,0,0,null,null,null,null,0]
[null,null,0,0,0,0,0,0,0,0,null,null,null,null,0]
[null,null,0,0,0,0,0,0,0,0,null,null,null,null,0]
[null,null,0,0,0,0,0,0,0,0,null,null,null,null,0]
[null,null,0,0,0,0,0,0,0,0,null,null,null,null,0]
[null,null,0,0,0,0,0,0,0,0,null,null,null,null,0]
[null,null,0,0,0,0,0,0,0,0,null,null,null,null,0]
[null,null,0,null,null,0,0,0,0,0,null,null,null,null,0]
[null,null,0,null,null,0,0,0,0,0,null,null,null,null,0]
[null,null,"Télétravail","Présentiel","Chômage",null,{"$f":"IF(E58=1,\"x\",0)","v":0},null,null,null,null,null,null,null,0]
[null,"Nombre de salariés",{"$f":"SUM(C23:C58)","v":1},{"$f":"SUM(D23:D58)","v":3},2,null,null,null,null,null,null,null,null,null,1]

{"sheet":"Mesures et facteurs","index":1,"n_rows":33,"n_cols":6,"rows_kept":33,"cut":false,"hidden":false,"merged":[[3,1,3,5]]}
[]
[]
[]
[null,"Entrez vos propres meures pour pouvoir les réutiliser, puis validez, la mesure de prévention ou le facteur de risque suivant le cas sera automatiquement copié dans le PCA / Plan de prévention"]
[]
[null,"Mesures de prévention particulières",null,null,null,"Facteurs de risques"]
[null,"Lavage des mains avant de monter dans le camion",null,null,null,"Coupure du lien social"]
[null,"Gel hydralcoolique à l'entrée",null,null,null,"Contact avec des objets ou des surfaces souillés "]
[null,"Nettoyage de la cabine à l'aide de lingettes",null,null,null,"Proximité avec l'aide du conducteur"]
[null,"Aération de la cabine du camion",null,null,null,"Contact avec des objets ou des surfaces souillés "]
[null,"Interdiction de climatiser la cabine",null,null,null,"Proximité avec l'aide du conducteur"]
[null,"Aérer régulièrement le local",null,null,null,"Proximité avec le public lors de livraison"]
[null,"Port du masque en permanence",null,null,null,"Proximité avec le public"]
[null,"Distanciation de 1 mètre à maintenir",null,null,null,"Transport du personnel : Véhicule commun"]
[null,"Porter une blouse de travail"]
[null,"Programmer des visioconférences"]
[null,"Programmer des retours au bureau"]
[null,"Retirer tout objet non nécessaire à la conduite"]
[null,"Ecran fixe devant la caisse"]
[null,"Port d'un écran facial"]
[null,"Demander le paiement par carte "]
[null,"Prendre régulièrement contact avec le salarié"]
[null,"Faire une pause toutes les heures"]
[null,"Affichage d'information gestes barrière"]
[null,"Affichage d'information symptômes covid"]
[null,"Affichage d'information vaccination"]
[null,"Fermer, interdire l'accès au public"]
[null,"Limiter le nombre de personnes "]
[null,"Tables : Disposition des personnes en quinconce"]
[null,"Registre de passage à remplir par les visitieurs"]
[null,"Gestion du flux : Ordre de rentrée et de sortie"]
[null,"Doubler la fréquence de nettoyage du local"]
[null,"Organiser un sens de circulation des visiteurs"]

{"sheet":"Macro1","index":2,"n_rows":33,"n_cols":4,"rows_kept":33,"cut":false,"hidden":false,"merged":[]}
[]
[null,"Sélection dommage"]
[null,{"$f":"SELECT(\"l(0)c(0)\")","v":true},":l(0)c(1)"]
[null,{"$f":"COPY()","v":true},{"$f":"SELECT(\"l(0)c(1)\")","v":true}]
[null,{"$f":"FORMULA.GOTO(mesure)","v":true}]
[null,{"$f":"PASTE()","v":true}]
[null,{"$f":" RETURN()","v":true}]
[]
[null,"Consultation de la gravité des dommages"]
[null,{"$f":" DEFINE.NAME(\"mesure\")","v":true}]
[null,{"$f":"FORMULA.GOTO('Mesures et facteurs'!$B$7)","v":true}]
[null,{"$f":" RETURN()","v":true}]
[]
[]
[null,"Retour","Raz"]
[null,{"$f":"FORMULA.GOTO(mesure)","v":true},{"$f":"FORMULA.GOTO(Feuil4!E8:G25)","v":true}]
[null,{"$f":" RETURN()","v":true},{"$f":"CLEAR()","v":true}]
[null,null,{"$f":" RETURN()","v":true}]
[]
[null,"Imprimer fiche de poste","Imprimer fiche de poste"]
[null,{"$f":"SELECT(\"l(0)c(0)\")","v":true},{"$f":"SELECT('PCA Plan prèv'!B1:J59)","v":true}]
[null,{"$f":" DEFINE.NAME(\"fiche\")","v":true},{"$f":"PRINT()","v":true},{"$f":" RETURN()","v":true}]
[null,{"$f":"COPY()","v":true},{"$f":" RETURN()","v":true}]
[null,{"$f":"PASTE(Feuil4!E8)","v":true}]
[null,{"$f":"SELECT(\"l(0)c(7)\")","v":true},null,{"$f":" RETURN()","v":true}]
[null,{"$f":"COPY()","v":true}]
[null,{"$f":"PASTE(Feuil4!#REF!)","v":true}]
[null,{"$f":"FORMULA.GOTO(\"fiche\")","v":true}]
[null,{"$f":"SELECT(\"l(0)c(8)\")","v":true}]
[null,{"$f":"COPY()","v":true},null,{"$f":"COPY()","v":true}]
[null,null,null,{"$f":"FORMULA.GOTO(Feuil4!#REF!)","v":true}]
[null,{"$f":"PASTE(Feuil4!#REF!)","v":true},null,{"$f":"PASTE()","v":true}]
[null,{"$f":" RETURN()","v":true}]

{"sheet":"Feuil4","index":3,"n_rows":8,"n_cols":7,"rows_kept":8,"cut":false,"hidden":false,"merged":[]}
[]
[null,null,null,null,"Fiche de poste COVID"]
[]
[null,null,null,null,"Entreprise",null,"Date : "]
[null,null,null,null,"Salarié"]
[null,null,null,null,"Poste de travail"]
[]
[null,null,null,null,"Mesures générales à l'entreprise"]